bitfinex-derivatives/quotes_SOLF0:USTF0_20260204
["timestamp","ask_amount","ask_price","bid_price","bid_amount"]
[1770230557484,3.92472298,92.74,92.642,9.7362]
[1770230557781,3.92472298,92.74,92.621,1.07638595]
[1770230558284,3.92472298,92.734,92.623,9.7381]
[1770230558474,3.92472298,92.734,92.621,1.07638595]
[1770230559281,9.7271,92.729,92.621,1.07638595]
[1770230559472,3.92472298,92.728,92.621,1.07638595]
[1770230559681,3.92472298,92.728,92.593,1.07044039]
[1770230559876,3.92472298,92.726,92.622,9.7383]
[1770230560075,3.92472298,92.726,92.593,1.07044039]
[1770230560484,3.92472298,92.726,92.635,9.7369]
[1770230560877,3.92472298,92.809,92.623,1.04778928]
[1770230561187,3.92472298,92.763,92.665,9.7338]
[1770230561780,3.92472298,92.761,92.648,9.7356]
[1770230562082,3.92472298,92.761,92.625,151.4809]
[1770230562281,3.92472298,92.761,92.623,1.04778928]
[1770230562282,3.92472298,92.757,92.626,1.04778928]
[1770230562690,3.92472298,92.757,92.652,1.05018845]
[1770230562982,3.92472298,92.785,92.657,1.05018845]
[1770230563487,3.92472298,92.756,92.657,1.05018845]
[1770230563676,3.92472298,92.756,92.644,9.736]
[1770230563879,3.92472298,92.738,92.644,9.736]
[1770230564677,3.92472298,92.713,92.629,1.05018845]
[1770230564878,3.92472298,92.713,92.624,9.7381]
[1770230565083,3.92472298,92.713,92.59,31.34494225]
[1770230565084,3.92472298,92.713,92.602,0.78795598]
[1770230565285,3.92472298,92.713,92.653,9.735]
[1770230565481,3.92472298,92.713,92.636,0.78795598]
[1770230565681,3.92472298,92.713,92.535,9.96153228]
[1770230565682,3.92472298,92.774,92.678,9.7324]
[1770230565887,3.92472298,92.774,92.664,0.78795598]
[1770230566585,3.92472298,92.774,92.691,9.731]
[1770230568494,3.92472298,92.774,92.664,0.78795598]
[1770230568495,3.92472298,92.774,92.703,9.7298]
[1770230568688,3.92472298,92.8,92.689,0.62704684]
[1770230568987,3.92472298,92.805,92.691,0.62704684]
[1770230569686,3.92472298,92.863,92.76,0.62704684]
[1770230569888,2.298e-05,92.863,92.768,3.83447512]
[1770230570086,9.7104,92.889,92.768,3.83447512]
[1770230570681,9.7104,92.889,92.733,151.3039]
[1770230570682,20.83908998,92.96,92.8,151.1952]
[1770230570985,20.83908998,92.99,92.825,151.1533]
[1770230571191,9.7006,92.983,92.86,3.83447512]
[1770230571387,20.83908998,92.99,92.86,3.83447512]
[1770230571788,3.92472298,92.989,92.86,3.83447512]
[1770230572282,150.7403,93.081,92.885,3.83447512]
[1770230572483,3.92472298,93.079,92.931,3.83447512]
[1770230572692,3.92472298,93.046,92.931,3.83447512]
[1770230573187,3.92472298,93.046,92.843,170.5549]
[1770230573188,9.6989,93.0,92.901,3.83447512]
[1770230573388,3.92472298,92.999,92.901,3.83447512]
[1770230573886,3.71522181,92.995,92.901,3.83447512]
[1770230574082,3.71522181,93.022,92.901,3.83447512]
[1770230574297,3.71522181,93.082,92.951,3.71356018]
[1770230574787,3.71522181,93.043,92.911,3.71356018]
[1770230574990,3.71522181,93.079,92.943,3.71356018]
[1770230575291,3.71522181,93.079,92.961,3.71356018]
[1770230575495,3.71522181,93.079,92.876,151.0715]
[1770230575496,3.71522181,93.043,92.919,3.71356018]
[1770230575986,3.71522181,93.023,92.881,3.71356018]
[1770230576194,3.71522181,93.021,92.881,3.71356018]
[1770230576688,3.71522181,93.02,92.903,3.71356018]
[1770230577092,150.7079,93.101,92.903,3.71356018]
[1770230577093,3.71522181,93.048,92.928,3.71356018]
[1770230577393,3.71522181,93.048,92.894,151.0409]
[1770230577394,3.71522181,93.078,92.955,3.71356018]
[1770230577594,3.71522181,93.124,93.02,9.6967]
[1770230577793,3.71522181,93.124,92.981,3.71356018]
[1770230577983,3.71522181,93.124,92.925,452.9737]
[1770230577984,3.71522181,93.124,93.016,3.71356018]
[1770230578187,3.71522181,93.124,93.018,3.71356018]
[1770230578384,3.71522181,93.124,92.971,3.71356018]
[1770230578590,3.71522181,93.069,92.971,3.71356018]
[1770230578792,3.71522181,93.069,92.936,3.72855478]
[1770230579491,3.68228629,93.057,92.936,3.72855478]
[1770230579798,3.68228629,93.029,92.895,3.72855478]
[1770230579990,3.68228629,93.026,92.895,3.72855478]
[1770230580185,3.68228629,93.026,92.87,20.83908998]
[1770230580186,9.6979,93.008,92.897,3.72855478]
[1770230580391,3.68228629,93.005,92.867,3.72855478]
[1770230580594,150.8302,93.025,92.84,20.83908998]
[1770230580595,3.68228629,93.03,92.904,3.72855478]
[1770230581095,9.6998,92.991,92.887,3.72855478]
[1770230581290,3.68228629,93.015,92.911,3.72855478]
[1770230581689,3.68228629,93.043,92.93,3.72855478]
[1770230581892,3.68228629,93.04,92.901,3.72855478]
[1770230582090,3.68228629,93.04,92.876,151.0701]
[1770230582091,3.68228629,93.04,92.911,3.72855478]
[1770230582292,150.7593,93.069,92.866,151.0866]
[1770230582293,3.68228629,93.024,92.917,3.72855478]
[1770230582689,9.6964,93.023,92.918,9.7073]
[1770230582886,3.68228629,93.024,92.89,20.83908998]
[1770230582887,3.68228629,93.024,92.919,3.72855478]
[1770230583398,3.68228629,93.024,92.865,151.0881]
[1770230583399,3.68228629,93.053,92.94,3.72855478]
[1770230583893,3.68228629,93.053,92.92,20.83908998]
[1770230583894,3.68228629,93.052,92.89,20.83908998]
[1770230584094,3.68228629,93.05,92.891,3.72855478]
[1770230584288,9.6984,93.004,92.892,3.72855478]
[1770230584492,3.68228629,93.023,92.892,3.72855478]
[1770230584696,3.68228629,93.023,92.895,3.72855478]
[1770230584893,3.68228629,93.023,92.924,3.72855478]
[1770230585096,3.68228629,93.052,92.924,3.72855478]
[1770230585487,3.68228629,93.052,92.958,3.72855478]
[1770230586398,9.6952,93.034,92.958,3.72855478]
[1770230586705,3.68228629,93.109,92.958,3.72855478]
[1770230586890,3.68228629,93.109,92.96,3.72855478]
[1770230587089,3.68228629,93.095,92.992,3.72855478]
[1770230588095,3.68228629,93.066,92.969,3.72855478]
[1770230588295,3.68228629,93.109,92.969,3.72855478]
[1770230588801,9.6906,93.079,92.99,9.6998]
[1770230588998,3.68228629,93.109,92.99,3.72855478]
[1770230589194,3.68228629,93.109,92.998,3.72855478]
[1770230589395,3.68228629,93.169,93.002,3.72855478]
[1770230589591,602.0531,93.221,93.002,3.72855478]
[1770230589592,3.68228629,93.134,93.002,3.72855478]
[1770230589792,3.68228629,93.132,93.002,3.72855478]
[1770230589996,3.68228629,93.103,93.002,3.72855478]
[1770230590706,3.68228629,93.071,92.972,3.72855478]
[1770230591091,3.68228629,93.071,92.934,150.976]
[1770230591092,9.687,93.114,93.022,3.72855478]
[1770230591289,3.68228629,93.117,92.961,3.72855478]
[1770230591494,150.7094,93.1,92.961,3.72855478]
[1770230591699,3.68228629,93.099,92.969,3.72855478]
[1770230591894,150.6566,93.132,92.903,390.15923772]
[1770230591895,3.68228629,93.074,92.904,3.72855478]
[1770230592100,3.68228629,93.064,92.904,3.72855478]
[1770230592296,9.6958,93.029,92.927,9.7063]
[1770230592492,3.68228629,93.033,92.904,3.72855478]
[1770230592893,9.6961,93.026,92.936,9.7054]
[1770230593201,3.68228629,93.033,92.921,3.72855478]
[1770230593400,9.6975,93.012,92.921,13.43545478]
[1770230593698,3.68228629,93.033,92.921,3.72855478]
[1770230593894,9.6962,93.025,92.934,9.7056]
[1770230594297,3.68228629,93.033,92.934,9.7056]
[1770230594493,3.68228629,93.033,92.921,3.72855478]
[1770230594703,3.68228629,93.063,92.921,3.72855478]
[1770230595207,9.6967,93.021,92.933,9.7057]
[1770230595700,3.68228629,93.02,92.921,3.72855478]
[1770230595899,3.68228629,93.02,92.934,9.7056]
[1770230596296,19.3795,93.087,92.934,9.7056]
[1770230596297,3.68228629,93.045,92.934,3.72855478]
[1770230597599,3.68228629,93.045,92.951,3.72855478]
[1770230597897,3.68228629,93.072,92.951,3.72855478]
[1770230598398,3.68228629,93.072,92.997,9.699]
[1770230598594,3.68228629,93.103,92.998,3.72855478]
[1770230598798,9.6895,93.089,93.013,9.6973]
[1770230599200,3.68228629,93.103,92.998,3.72855478]
[1770230599403,3.68228629,93.1,93.011,9.6975]
[1770230599698,3.68228629,93.1,92.998,3.72855478]
[1770230600005,13.37198629,93.088,93.004,9.6983]
[1770230600505,3.68228629,93.088,93.008,9.6979]
[1770230601098,3.68228629,93.088,93.022,9.6964]
[1770230601299,3.68228629,93.116,92.998,3.72855478]
[1770230601501,3.68228629,93.116,93.011,3.72855478]
[1770230602004,3.68228629,93.114,93.011,3.72855478]
[1770230602504,3.68228629,93.114,93.054,9.6931]
[1770230602706,3.68228629,93.114,93.011,3.72855478]
[1770230603003,3.68228629,93.138,93.054,9.6931]
[1770230603305,3.68228629,93.138,93.011,3.72855478]
[1770230604401,3.89451397,93.161,93.011,3.72855478]
[1770230604599,3.89451397,93.161,93.032,3.71225215]
[1770230604799,3.89451397,93.105,93.001,3.71225215]
[1770230605701,3.89451397,93.165,93.01,3.71225215]
[1770230605905,3.89451397,93.162,93.01,3.71225215]
[1770230606208,3.89451397,93.13,93.01,3.71225215]
[1770230606903,3.89451397,93.13,93.013,3.71225215]
[1770230607106,9.6854,93.128,93.059,9.6926]
[1770230607306,9.6854,93.128,93.013,3.71225215]
[1770230608008,9.6854,93.128,93.046,9.6939]
[1770230608200,9.6854,93.128,93.013,3.71225215]
[1770230608201,13.58181397,93.111,93.013,3.71225215]
[1770230608394,3.89451397,93.111,93.013,3.71225215]
[1770230608603,9.6907,93.078,93.013,3.71225215]
[1770230608900,3.89451397,93.111,93.013,3.71225215]
[1770230609497,9.6908,93.077,93.013,3.71225215]
[1770230609803,3.89451397,93.111,93.013,3.71225215]
[1770230610108,9.6907,93.077,93.018,9.6969]
[1770230610304,3.89451397,93.111,93.013,3.71225215]
[1770230610901,9.6885,93.099,93.027,9.6959]
[1770230611097,3.89451397,93.111,93.013,3.71225215]
[1770230611302,3.89451397,93.107,92.985,3.71225215]
[1770230611606,9.6928,93.057,92.989,9.6998]
[1770230612007,3.89451397,93.056,92.958,3.71225215]
[1770230612598,3.89451397,93.031,92.933,3.71225215]
[1770230613007,9.6974,93.014,92.947,9.7042]
[1770230613310,9.6974,93.014,92.933,3.71225215]
[1770230613311,3.89451397,93.031,92.933,3.71225215]
[1770230613507,3.89451397,92.996,92.908,3.71225215]
[1770230613809,3.89451397,93.018,92.908,3.71225215]
[1770230614010,3.89451397,93.018,92.893,151.044]
[1770230614011,3.89451397,93.018,92.945,9.7045]
[1770230614210,3.89451397,93.018,92.931,3.71225215]
[1770230614211,9.82186529,93.027,92.931,3.71225215]
[1770230614409,3.89451397,93.044,92.931,3.71225215]
[1770230614601,9.82186529,93.026,92.931,3.71225215]
[1770230615311,3.89451397,93.044,92.931,3.71225215]
[1770230615312,9.82186529,93.013,92.931,3.71225215]
[1770230615508,9.82186529,93.016,92.931,3.71225215]
[1770230615912,9.82186529,93.01,92.931,3.71225215]
[1770230616116,9.6969,93.018,92.934,9.7056]
[1770230616309,19.51876529,93.018,92.934,9.7056]
[1770230616907,19.51876529,93.018,92.92,20.83908998]
[1770230616908,3.89451397,93.013,92.92,30.54618998]
[1770230617112,3.89451397,93.012,92.92,20.83908998]
[1770230617314,3.89451397,93.012,92.921,3.71225215]
[1770230617512,3.89451397,93.012,92.947,9.7043]
[1770230618415,3.89451397,93.012,92.952,9.7037]
[1770230618814,3.89451397,93.012,92.95,8.12055174]
[1770230619616,3.89451397,93.012,92.952,9.7037]
[1770230620007,9.82186529,93.031,92.963,9.7026]
[1770230620216,13.58961397,93.036,92.902,151.0288]
[1770230620217,3.89451397,93.036,92.97,8.12055174]
[1770230620711,12.92627865,93.074,92.97,8.12055174]
[1770230620712,9.82186529,93.054,92.983,9.7005]
[1770230621114,9.82186529,93.052,92.983,9.7005]
[1770230621415,156.6,93.084,92.921,150.9981]
[1770230621416,3.89451397,93.088,93.01,8.12055174]
[1770230621718,3.89451397,93.088,92.991,3.71225215]
[1770230621917,3.89451397,93.086,93.017,9.6969]
[1770230622415,12.92627865,93.107,93.011,3.71225215]
[1770230622617,3.89451397,93.147,93.071,3.71225215]
[1770230622817,19.13237825,93.201,93.09,8.12055174]
[1770230623015,19.13237825,93.201,93.055,150.7803]
[1770230623016,19.13237825,93.214,93.11,8.12055174]
[1770230623211,19.13237825,93.219,93.091,3.71225215]
[1770230623417,9.6822,93.159,93.084,9.69]
[1770230623615,19.13237825,93.205,93.071,3.71225215]
[1770230623812,19.13237825,93.199,93.071,3.71225215]
[1770230624017,8.12055174,93.22,93.071,3.71225215]
[1770230624018,19.13237825,93.205,93.071,3.71225215]
[1770230624315,19.13237825,93.218,93.11,8.12055174]
[1770230624519,19.13237825,93.226,93.091,3.71225215]
[1770230624715,3.89451397,93.174,93.051,3.71225215]
[1770230625225,3.89451397,93.174,93.05,20.65261965]
[1770230625226,3.89451397,93.174,93.105,9.6878]
[1770230625414,3.89451397,93.174,93.081,3.71225215]
[1770230626022,3.89451397,93.174,93.114,9.6869]
[1770230627720,3.89451397,93.2,93.081,3.71225215]
[1770230628119,19.13237825,93.218,93.123,3.71225215]
[1770230628317,3.89451397,93.224,93.123,3.71225215]
[1770230628823,3.89451397,93.213,93.139,9.6842]
[1770230629014,3.89451397,93.213,93.123,3.71225215]
[1770230629216,9.6781,93.199,93.125,9.6857]
[1770230629726,3.89451397,93.213,93.097,3.71225215]
[1770230629917,3.89451397,93.213,93.119,9.6863]
[1770230630122,3.89451397,93.234,93.131,3.71225215]
[1770230630522,3.89451397,93.218,93.104,3.71225215]
[1770230630722,3.89451397,93.218,93.072,3.71225215]
[1770230630918,3.89451397,93.206,93.072,3.71225215]
[1770230631125,9.681,93.171,93.09,9.6893]
[1770230631424,3.89451397,93.174,93.09,9.6893]
[1770230632215,3.89451397,93.174,93.076,9.6907]
[1770230632522,150.5342,93.208,93.02,30.96981775]
[1770230632523,3.89451397,93.131,93.02,30.96981775]
[1770230632823,3.89451397,93.131,93.021,3.71225215]
[1770230633326,3.89451397,93.129,93.021,3.71225215]
[1770230633722,3.89451397,93.129,92.991,3.71225215]
[1770230634024,9.6887,93.098,93.016,9.697]
[1770230634222,3.91060993,93.104,93.016,3.91189924]
[1770230634522,9.6855,93.128,93.041,9.6944]
[1770230634728,3.91060993,93.127,93.042,3.91189924]
[1770230635115,3.91060993,93.127,93.055,9.693]
[1770230635321,9.6841,93.141,93.056,3.91189924]
[1770230635616,150.5083,93.224,93.021,3.91189924]
[1770230635617,3.91060993,93.096,93.021,3.91189924]
[1770230636013,3.91060993,93.096,92.995,3.91189924]
[1770230636217,3.91060993,93.093,93.009,9.6978]
[1770230636623,3.91060993,93.093,92.995,3.91189924]
[1770230637025,3.91060993,93.093,93.021,9.6965]
[1770230637416,3.91060993,93.093,92.995,3.91189924]
[1770230637417,3.91060993,93.093,93.035,9.695]
[1770230637729,3.91060993,93.093,92.995,3.91189924]
[1770230637927,3.91060993,93.093,93.021,9.6966]
[1770230638127,3.91060993,93.161,92.995,3.91189924]
[1770230638922,13.52653361,93.105,93.019,9.6967]
[1770230639423,3.83863361,93.104,93.019,9.6967]
[1770230639625,3.83863361,93.101,93.005,9.6982]
[1770230640425,3.83863361,93.09,92.995,3.91189924]
[1770230640727,3.83863361,93.13,92.981,3.75213229]
[1770230640925,3.83863361,93.128,93.011,3.75213229]
[1770230641222,13.52533361,93.116,93.04,9.6946]
[1770230641428,3.83863361,93.115,93.011,3.75213229]
[1770230642128,3.83863361,93.099,93.011,3.75213229]
[1770230642530,3.83863361,93.099,92.986,3.75213229]
[1770230642917,3.83863361,93.078,92.986,3.75213229]
[1770230643324,3.83863361,93.051,92.951,3.75213229]
[1770230643928,9.6938,93.048,92.96,9.7028]
[1770230644133,3.83863361,93.047,92.96,9.7028]
[1770230644335,3.83863361,93.047,92.951,3.75213229]
[1770230644531,3.83863361,93.033,92.952,9.7037]
[1770230644726,3.83863361,93.033,92.951,3.75213229]
[1770230644933,3.83863361,93.059,92.951,3.75213229]
[1770230645234,3.83863361,93.059,92.912,151.0123]
[1770230645235,3.83863361,93.113,92.97,30.96981775]
[1770230645428,19.3651,93.156,92.971,3.75213229]
[1770230645429,3.83863361,93.111,92.971,3.75213229]
[1770230645633,3.83863361,93.109,92.971,3.75213229]
[1770230646023,3.83863361,93.091,92.99,30.96981775]
[1770230646225,3.83863361,93.091,92.991,3.75213229]
[1770230646434,3.83863361,93.091,93.01,8.11014409]
[1770230646634,3.83863361,93.091,92.991,3.75213229]
[1770230646837,3.83863361,93.085,92.97,8.11014409]
[1770230647037,23.61114031,93.07,92.966,3.75213229]
[1770230647234,3.83863361,93.064,92.979,9.7009]
[1770230647537,3.83863361,93.063,92.97,8.11014409]
[1770230648336,150.6898,93.112,92.95,8.11014409]
[1770230648337,3.83863361,93.059,92.95,8.11014409]
[1770230648535,3.83863361,93.054,92.95,8.11014409]
[1770230648736,3.83863361,93.05,92.95,8.11014409]
[1770230649141,3.83863361,93.036,92.944,9.7046]
[1770230649339,8.11014409,93.06,92.944,9.7046]
[1770230649340,3.83863361,93.033,92.944,9.7046]
[1770230649538,3.83863361,93.033,92.94,3.75213229]
[1770230649835,3.83863361,93.033,92.941,3.75213229]
[1770230650036,19.7725067,93.052,92.961,3.75213229]
[1770230650235,19.7725067,93.088,92.98,11.86227638]
[1770230650440,9.6915,93.07,92.989,9.6999]
[1770230650836,19.7725067,93.099,92.981,3.75213229]
[1770230651041,19.7725067,93.108,92.981,3.75213229]
[1770230651233,19.7725067,93.099,92.981,3.75213229]
[1770230651431,19.7725067,93.089,92.981,3.75213229]
[1770230651632,19.7725067,93.108,93.006,3.75213229]
[1770230651833,19.7725067,93.133,93.02,8.11014409]
[1770230652042,3.51697025,93.128,93.02,8.11014409]
[1770230652344,3.51697025,93.114,93.006,3.75213229]
[1770230652541,3.57433992,93.107,93.006,3.75213229]
[1770230652740,13.20142589,93.081,93.006,3.75213229]
[1770230653040,13.20142589,93.086,93.02,9.6957]
[1770230653237,13.20142589,93.086,93.006,3.75213229]
[1770230653238,3.57433992,93.084,93.006,3.75213229]
[1770230653642,13.20142589,93.105,93.006,3.75213229]
[1770230653840,3.57433992,93.108,93.006,3.75213229]
[1770230654042,3.57433992,93.099,93.035,9.6942]
[1770230654240,3.57433992,93.098,93.006,3.75213229]
[1770230655138,3.83863361,93.094,93.006,3.75213229]
[1770230655443,3.83863361,93.088,93.019,9.6959]
[1770230655644,3.83863361,93.084,93.019,9.6959]
[1770230655843,3.83863361,93.084,93.029,9.6948]
[1770230656538,3.83863361,93.084,93.017,9.6959]
[1770230656748,3.83863361,93.084,92.98,8.11014409]
[1770230656749,3.83863361,93.084,92.981,3.75213229]
[1770230657135,8.11014409,93.09,92.981,3.75213229]
[1770230657136,13.53023361,93.06,92.99,9.6988]
[1770230657536,3.83863361,93.06,92.96,8.11014409]
[1770230657734,3.83863361,93.06,92.957,3.75213229]
[1770230657735,3.83863361,93.046,92.957,3.75213229]
[1770230659843,3.83863361,93.042,92.967,9.7012]
[1770230660838,3.83863361,93.04,92.967,9.7012]
[1770230661038,3.83863361,93.04,92.926,243.74546056]
[1770230661039,3.83863361,93.065,92.971,3.75213229]
[1770230661441,3.83863361,93.065,92.89,151.0328]
[1770230661442,3.83863361,93.039,92.943,9.7036]
[1770230661642,3.83863361,93.039,92.941,3.75213229]
[1770230662153,3.83863361,93.037,92.964,9.7015]
[1770230662744,9.6941,93.036,92.964,9.7015]
[1770230662947,3.83863361,93.037,92.977,9.7001]
[1770230663147,3.83863361,93.062,92.961,3.75213229]
[1770230663346,9.6915,93.06,92.999,9.6978]
[1770230663541,9.6915,93.06,92.961,3.75213229]
[1770230663542,3.83863361,93.059,92.961,3.75213229]
[1770230663941,9.6928,93.048,92.986,9.6992]
[1770230664239,3.80296134,93.048,92.961,3.75213229]
[1770230664646,13.49706134,93.036,92.963,9.7016]
[1770230664843,3.80296134,93.035,92.932,3.892486]
[1770230665042,3.80296134,93.034,92.932,3.892486]
[1770230665240,9.6974,93.004,92.932,3.892486]
[1770230665439,3.80296134,93.034,92.932,3.892486]
[1770230666151,3.80296134,93.019,92.933,9.7047]
[1770230666347,3.80296134,93.019,92.932,3.892486]
[1770230666541,3.80296134,93.015,92.932,13.597286]
[1770230666744,3.80296134,93.015,92.932,3.892486]
[1770230667144,3.80296134,93.042,92.941,3.892486]
[1770230667753,3.80296134,93.039,92.941,3.892486]
[1770230668156,3.80296134,93.039,92.981,9.6997]
[1770230668854,3.80296134,93.063,92.983,3.892486]
[1770230669151,13.20142589,93.104,92.983,3.892486]
[1770230669351,8.11014409,93.12,93.017,9.6959]
[1770230669352,3.80296134,93.09,93.017,9.6959]
[1770230669744,3.80296134,93.09,93.017,3.892486]
[1770230669943,3.80296134,93.117,93.033,9.6943]
[1770230670353,3.80296134,93.117,93.033,13.586786]
[1770230670554,3.80296134,93.117,93.034,3.892486]
[1770230671056,3.80296134,93.117,93.048,9.6928]
[1770230671451,3.80296134,93.117,93.034,3.892486]
[1770230671651,9.6858,93.116,93.044,9.6931]
[1770230672053,13.20142589,93.132,92.938,3.892486]
[1770230672054,3.80253217,93.095,92.938,3.892486]
[1770230672353,3.79754283,93.059,92.946,3.892486]
[1770230672652,9.6976,93.002,92.926,9.7055]
[1770230672851,9.6976,93.002,92.911,3.892486]
[1770230672852,3.79754283,93.021,92.911,3.892486]
[1770230673260,9.6964,93.014,92.938,9.7042]
[1770230673456,13.20142589,93.02,92.911,3.892486]
[1770230673457,3.79754283,93.019,92.911,3.892486]
[1770230673653,3.79754283,93.011,92.911,3.892486]
[1770230673846,9.6974,93.004,92.926,9.7055]
[1770230674555,3.79754283,93.011,92.939,9.7041]
[1770230674755,13.20142589,93.007,92.927,3.892486]
[1770230675157,13.20142589,93.006,92.927,3.892486]
[1770230675353,3.79754283,93.011,92.927,3.892486]
[1770230675354,13.20142589,93.003,92.939,9.7041]
[1770230675553,13.20142589,93.005,92.927,3.892486]
[1770230675756,13.20142589,93.004,92.927,3.892486]
[1770230675956,9.6986,92.993,92.927,3.892486]
[1770230676258,13.20142589,93.0,92.927,3.892486]
[1770230676452,13.20142589,93.0,92.884,244.16461822]
[1770230676453,19.81651825,93.091,93.02,9.6956]
[1770230676653,11.17182202,93.093,93.01,8.11014409]
[1770230676861,11.17182202,93.093,93.0,8.11014409]
[1770230677353,11.17182202,93.09,93.001,9.6976]
[1770230677559,11.17182202,93.089,92.96,8.11014409]
[1770230677851,8.11014409,93.09,92.96,8.11014409]
[1770230677852,11.17182202,93.074,92.96,8.11014409]
[1770230678053,11.17182202,93.035,92.92,8.11014409]
[1770230678655,11.17182202,93.035,92.873,19.4221]
[1770230678656,11.26843669,93.067,92.97,8.11014409]
[1770230678864,11.26843669,93.055,92.95,8.11014409]
[1770230679062,11.26843669,93.055,92.93,8.11014409]
[1770230679355,11.26843669,93.048,92.93,8.11014409]
[1770230680359,11.26843669,93.048,92.952,9.7027]
[1770230680857,11.28315615,93.033,92.952,9.7028]
[1770230681053,11.28315615,93.033,92.93,8.11014409]
[1770230681457,9.98568468,93.008,92.93,8.11014409]
[1770230681758,11.28315615,93.033,92.882,19.4202]
[1770230681759,9.98568468,93.004,92.91,8.11014409]
[1770230682254,9.98568468,93.003,92.937,9.7043]
[1770230682459,9.98568468,93.003,92.91,8.11014409]
[1770230682460,9.98568468,92.999,92.91,8.11014409]
[1770230682956,9.98568468,93.008,92.93,8.11014409]
[1770230683265,9.98568468,93.023,92.95,8.11014409]
[1770230683452,9.98568468,93.039,92.97,8.11014409]
[1770230683758,9.98568468,93.058,92.97,8.11014409]
[1770230683956,9.98568468,93.042,92.95,8.11014409]
[1770230684262,8.11014409,93.09,92.889,151.0343]
[1770230684263,9.98568468,93.022,92.93,8.11014409]
[1770230684462,9.98568468,93.023,92.95,8.11014409]
[1770230684756,9.98568468,93.023,92.902,151.0133]
[1770230684757,11.05557419,93.092,93.01,8.11014409]
[1770230685055,11.05557419,93.092,92.99,8.11014409]
[1770230685554,11.05557419,93.092,93.027,9.6949]
[1770230685955,11.05557419,93.092,92.97,8.11014409]
[1770230686556,10.99728672,93.064,92.97,8.11014409]
[1770230687157,10.99728672,93.064,92.998,9.698]
[1770230687859,10.99728672,93.064,92.949,19.4062]
[1770230687860,10.99728672,93.064,92.95,8.11014409]
[1770230688363,9.6931,93.045,92.987,9.6991]
[1770230688662,9.6931,93.045,92.95,8.11014409]
[1770230689059,9.6922,93.054,92.987,9.6991]
[1770230689553,10.85507452,93.049,92.92,8.11014409]
[1770230689753,10.85507452,93.022,92.94,8.11014409]
[1770230689953,10.85507452,93.068,92.96,8.11014409]
[1770230690159,10.85507452,93.067,92.96,8.11014409]
[1770230690356,10.85507452,93.067,92.982,9.6997]
[1770230690557,10.85507452,93.067,92.96,8.11631757]
[1770230690957,150.7012,93.096,92.898,151.0205]
[1770230690958,9.6947,93.03,92.961,9.7019]
[1770230691254,10.91155206,93.039,92.94,8.11631757]
[1770230691652,9.6939,93.038,92.968,9.7011]
[1770230692062,10.91155206,93.039,92.96,8.11631757]
[1770230692463,10.97548242,93.094,92.96,8.11631757]
[1770230693065,10.97548242,93.071,92.98,8.11631757]
[1770230693967,10.97548242,93.071,93.0,9.6977]
[1770230694272,10.97548242,93.071,92.958,150.9221]
[1770230694462,10.98392547,93.094,93.0,8.11631757]
[1770230694663,10.98392547,93.094,93.021,9.6956]
[1770230696060,19.96949317,93.09,93.021,9.6956]
[1770230696267,19.96949317,93.088,93.021,9.6956]
[1770230696664,10.97323389,93.083,92.98,8.11631757]
[1770230696865,19.9693525,93.073,92.98,8.11631757]
[1770230697065,10.97323389,93.083,92.98,8.11631757]
[1770230697066,19.9693525,93.068,92.98,8.11631757]
[1770230697371,19.9693525,93.059,92.993,9.6984]
[1770230697567,30.94258639,93.053,92.927,150.973]
[1770230697862,19.9693525,93.037,92.97,9.7009]
[1770230698059,19.9693525,93.042,92.95,8.11631757]
[1770230698262,19.9693525,93.046,92.95,8.11631757]
[1770230698462,19.9693525,93.038,92.95,8.11631757]
[1770230698666,19.9693525,93.036,92.95,8.11631757]
[1770230698861,19.9693525,93.024,92.95,8.11631757]
[1770230699061,19.9693525,93.022,92.967,9.7012]
[1770230699268,19.9693525,93.026,92.967,9.7012]
[1770230699472,19.9693525,93.026,92.95,8.11631757]
[1770230699473,19.9693525,93.028,92.977,9.7001]
[1770230699663,19.9693525,93.026,92.95,8.11631757]
[1770230699866,19.9693525,93.026,92.883,151.0449]
[1770230699867,19.9693525,93.012,92.93,8.11631757]
[1770230700065,19.9693525,93.007,92.95,9.7029]
[1770230700264,2.4027525,93.001,92.93,8.11631757]
[1770230700469,11.0038232,93.03,92.898,151.0208]
[1770230700470,11.0038232,93.03,92.95,8.11631757]
[1770230700671,8.11631757,93.07,92.95,9.7029]
[1770230700672,11.00676581,93.029,92.95,9.7029]
[1770230701172,11.00676581,93.023,92.95,9.7029]
[1770230701367,11.00676581,93.017,92.95,9.7029]
[1770230702066,26.65136063,93.011,92.95,9.7029]
[1770230702266,26.65136063,93.037,92.95,8.11631757]
[1770230702466,11.02002217,93.03,92.95,8.11631757]
[1770230702667,26.65136063,93.022,92.95,8.11631757]
[1770230702864,11.02002217,93.074,92.99,8.11631757]
[1770230703262,9.6945,93.032,92.95,8.11631757]